fUSD/lending_fUSD_20241203
["ID","MTS","AMOUNT","RATE_DAILY","PERIOD"]
[344035035,1733236232296,-437.0651737,7.2e-05,2]
[344035036,1733236232308,-662.9348263,7.2e-05,2]
[344035037,1733236232318,-2300.0,7.3e-05,2]
[344035038,1733236232328,-500.0,7.315e-05,2]
[344035039,1733236232338,-282.0,7.315e-05,2]
[344035040,1733236232353,-3326.7401737,7.4e-05,2]
[344035041,1733236232484,-173.2598263,7.4e-05,2]
[344035042,1733236232494,-161.508551,7.473e-05,2]
[344035043,1733236232504,-300.0,7.499e-05,2]
[344035044,1733236232513,-4600.0,7.5e-05,2]
[344035045,1733236232523,-9089.0,7.537e-05,2]
[344035046,1733236232533,-226.6072959,7.545e-05,2]
[344035047,1733236232543,-446.7064,7.595e-05,2]
[344035048,1733236232551,-150.0,7.599e-05,2]
[344035049,1733236232558,-487.9704894,7.6e-05,2]
[344035050,1733236232564,-2500.0,7.6e-05,2]
[344035051,1733236232571,-5800.0,7.6e-05,2]
[344035052,1733236232578,-1570.0,7.6e-05,2]
[344035053,1733236232586,-516.2,7.621e-05,2]
[344035054,1733236232600,-164.314,7.646e-05,2]
[344035055,1733236232611,-1000.0,7.661e-05,2]
[344035056,1733236232619,-1000.0,7.661e-05,2]
[344035057,1733236232631,-1000.0,7.661e-05,2]
[344035058,1733236232640,-1000.0,7.661e-05,2]
[344035059,1733236232651,-1000.0,7.661e-05,2]
[344035060,1733236232659,-1000.0,7.661e-05,2]
[344035061,1733236232666,-1000.0,7.661e-05,2]
[344035062,1733236232675,-1000.0,7.661e-05,2]
[344035063,1733236232684,-1000.0,7.661e-05,2]
[344035064,1733236232694,-1000.0,7.661e-05,2]
[344035065,1733236232704,-860.1143,7.661e-05,2]
[344035066,1733236232715,-1000.0,7.67e-05,2]
[344035067,1733236232727,-18714.0,7.671e-05,2]
[344035069,1733236232737,-1024.8545,7.671e-05,2]
[344035072,1733236232751,-291.0,7.671e-05,2]
[344035074,1733236232761,-163.65088236,7.673e-05,2]
[344035075,1733236232771,-500.0,7.673e-05,2]
[344035076,1733236232781,-500.0,7.673e-05,2]
[344035077,1733236232792,-503.34573667,7.673e-05,2]
[344035078,1733236232802,-500.0,7.673e-05,2]
[344035079,1733236232812,-200.0,7.677e-05,2]
[344035080,1733236232822,-211.46513922,7.68e-05,2]
[344035081,1733236232832,-1434.79031696,7.681e-05,2]
[344035082,1733236232842,-200.0,7.682e-05,2]
[344035083,1733236232862,-1434.79031696,7.684e-05,2]
[344035086,1733236232872,-1434.79031696,7.684e-05,2]
[344035089,1733236232882,-1434.79031696,7.685e-05,2]
[344035092,1733236232892,-211.46513922,7.688e-05,2]
[344035095,1733236232903,-1434.79031696,7.688e-05,2]
[344035097,1733236232912,-229.88141375,7.689e-05,2]
[344035099,1733236232922,-500.0,7.689e-05,2]
[344035101,1733236232932,-500.0,7.689e-05,2]
[344035103,1733236232942,-500.0,7.689e-05,2]
[344035105,1733236232952,-500.0,7.689e-05,2]
[344035107,1733236232962,-471.49233621,7.689e-05,2]
[344035109,1733236232972,-486.0533486,7.689e-05,2]
[344035111,1733236232982,-500.0,7.689e-05,2]
[344035113,1733236232991,-500.0,7.689e-05,2]
[344035115,1733236233001,-500.0,7.689e-05,2]
[344035117,1733236233011,-500.0,7.689e-05,2]
[344035119,1733236233021,-500.0,7.689e-05,2]
[344035121,1733236233030,-500.0,7.689e-05,2]
[344035122,1733236233040,-500.0,7.689e-05,2]
[344035123,1733236233050,-500.0,7.689e-05,2]
[344035124,1733236233060,-500.0,7.689e-05,2]
[344035125,1733236233069,-500.0,7.689e-05,2]
[344035126,1733236233079,-500.0,7.689e-05,2]
[344035127,1733236233090,-500.0,7.689e-05,2]
[344035128,1733236233104,-363.16672446,7.689e-05,2]
[344035129,1733236233114,-500.0,7.689e-05,2]
[344035130,1733236233124,-500.0,7.689e-05,2]
[344035132,1733236233134,-211.46513922,7.69e-05,2]
[344035134,1733236233145,-50743.14536675,7.69e-05,2]
[344035151,1733236233373,-5907.49790174,7.69e-05,2]
[344035152,1733236233387,-8693.86736724,7.69e-05,2]
[344035153,1733236233399,-17200.5,7.69e-05,2]
[344035154,1733236233412,-1270.0,7.69e-05,2]
[344035155,1733236233529,-941.2,7.69e-05,2]
[344035156,1733236235176,250.0,6.702e-05,2]
[344035160,1733236238160,-150.0,7.646e-05,2]
[344035161,1733236238171,-630.0,7.646e-05,2]
[344035162,1733236238181,-1166.0,7.646e-05,2]
[344035163,1733236238192,-2925.223,7.69e-05,2]
[344035164,1733236238258,-4704.09768669,7.69e-05,2]
[344035165,1733236238270,-314.50665466,7.69e-05,2]
[344035166,1733236238281,-1944.1620263,7.69e-05,2]
[344035167,1733236238365,-13643.06047266,7.69e-05,2]
[344035168,1733236238378,-718390.65841395,7.69e-05,2]
[344035169,1733236238388,-2579.3046055,7.69e-05,2]
[344035170,1733236238397,-6700.6798658,7.69e-05,2]
[344035171,1733236238406,-544.1294029,7.69e-05,2]
[344035172,1733236238415,-200.0,7.692e-05,2]
[344035173,1733236238425,-1434.79031696,7.693e-05,2]
[344035174,1733236238435,-200.0,7.693e-05,2]
[344035175,1733236238445,-3680.334,7.695e-05,2]
[344035176,1733236238454,-176.975,7.695e-05,2]
[344035177,1733236238464,-3246.1699253,7.695e-05,2]
[344035178,1733236238474,-8433.1045713,7.695e-05,2]
[344035179,1733236238484,-682.9331956,7.695e-05,2]
[344035180,1733236238493,-211.46513922,7.696e-05,2]
[344035181,1733236238502,-211.46513922,7.696e-05,2]
[344035182,1733236238512,-150.0,7.699e-05,2]
[344035183,1733236238523,-2724.4998,7.699e-05,2]
[344035184,1733236238532,-157.47897566,7.699e-05,2]
[344035185,1733236238542,-255.30868994,7.699e-05,2]
[344035186,1733236238552,-3087.86110238,7.699e-05,2]
[344035187,1733236238562,-1063.08168324,7.699e-05,2]
[344035188,1733236238572,-1063.08168324,7.699e-05,2]
[344035189,1733236238583,-1063.08168324,7.699e-05,2]
[344035190,1733236238594,-1063.08168324,7.699e-05,2]
[344035191,1733236238609,-1063.08168324,7.699e-05,2]
[344035192,1733236238619,-1063.08168326,7.699e-05,2]
[344035193,1733236238632,-500.0,7.699e-05,2]
[344035194,1733236238644,-1000.0,7.699e-05,2]
[344035195,1733236238653,-1000.0,7.699e-05,2]
[344035196,1733236238663,-1000.0,7.699e-05,2]
[344035197,1733236238672,-1000.0,7.699e-05,2]
[344035198,1733236238682,-1000.0,7.699e-05,2]
[344035199,1733236238692,-1000.0,7.699e-05,2]
[344035200,1733236238703,-1000.0,7.699e-05,2]
[344035201,1733236238712,-1000.0,7.699e-05,2]
[344035202,1733236238721,-1000.0,7.699e-05,2]
[344035203,1733236238731,-1000.0,7.699e-05,2]
[344035204,1733236238740,-1000.0,7.699e-05,2]
[344035205,1733236238749,-1000.0,7.699e-05,2]
[344035206,1733236238759,-1000.0,7.699e-05,2]
[344035207,1733236238768,-1000.0,7.699e-05,2]
[344035209,1733236238779,-1000.0,7.699e-05,2]
[344035210,1733236238788,-1000.0,7.699e-05,2]
[344035211,1733236238798,-1000.0,7.699e-05,2]
[344035212,1733236238808,-1000.0,7.699e-05,2]
[344035213,1733236238817,-719.71203983,7.699e-05,2]
[344035214,1733236238827,-12565.08436148,7.699e-05,2]
[344035215,1733236238837,-29938.12,7.699e-05,2]
[344035216,1733236238847,-250000.0,7.7e-05,2]
[344035217,1733236238860,-787.0,7.7e-05,2]
[344035218,1733236238870,-211.46513922,7.7e-05,2]
[344035219,1733236238880,-20072558.10104278,7.7e-05,2]
[344035220,1733236238891,-2199.16050169,7.7e-05,2]
[344035221,1733236238903,-3046.08,7.7e-05,2]
[344035222,1733236238914,-3759.21885801,7.7e-05,2]
[344035223,1733236238930,-2961.2358359,7.7e-05,2]
[344035241,1733236240162,-831.8376,7.7e-05,2]
[344035242,1733236240173,-1543.31630938,7.7e-05,2]
[344035243,1733236240313,-17781.586405,7.7e-05,2]
[344035244,1733236240325,-246350.668,7.7e-05,2]
[344035245,1733236242619,-283.191909,7.7e-05,2]
[344035274,1733236245186,-13709.0,7.646e-05,2]
[344035275,1733236245196,-27722.4344,7.7e-05,2]
[344035276,1733236245207,-440.32,7.7e-05,2]
[344035277,1733236245219,-509.59999992,7.7e-05,2]
[344035278,1733236245230,-3377.18,7.7e-05,2]
[344035279,1733236245399,-109750.0,7.7e-05,2]
[344035280,1733236245412,-5971.05200631,7.7e-05,2]
[344035281,1733236245424,-5703.07468463,7.7e-05,2]
[344035282,1733236245438,-6021.45332414,7.7e-05,2]
[344035283,1733236245452,-251.381267,7.7e-05,2]
[344035284,1733236245465,-3037.62680153,7.7e-05,2]
[344035285,1733236245481,-617.8454352,7.7e-05,2]
[344035325,1733236248973,-601.68149062,7.7e-05,2]
[344035326,1733236248986,-3738.9996,7.7e-05,2]
[344035327,1733236250296,-1261.191235,7.7e-05,2]
[344035328,1733236250391,-13132.84350048,7.7e-05,2]
[344035329,1733236250533,-702.37674005,7.7e-05,2]
[344035330,1733236250545,-6287.49979428,7.7e-05,2]
[344035331,1733236250557,-21639.999999,7.7e-05,2]
[344035332,1733236250569,-2119.9999413,7.7e-05,2]
[344035333,1733236250596,-572.27667304,7.7e-05,2]
[344035334,1733236250608,-599.94991,7.7e-05,2]
[344035335,1733236250663,-18943.79042443,7.7e-05,2]
[344035373,1733236366883,1500.0,6.999e-05,2]
[344035374,1733236389464,171.66,6.982e-05,2]
[344035376,1733236475490,23900.0,6.919e-05,2]
[344035377,1733236513837,200.0,6.888e-05,2]
[344035378,1733236821234,250.0,6.642e-05,2]
[344035379,1733236872226,10000.0,0.000165,30]
[344035380,1733236905675,250.0,6.545e-05,2]
[344035381,1733236915803,19005.0,0.000165,30]
[344035384,1733236993098,1500.0,6.54e-05,2]
[344035386,1733237026856,727.62,6.54e-05,2]
[344035387,1733237079042,23900.0,6.538e-05,2]
[344035388,1733237115389,150.0,6.929e-05,2]
[344035389,1733237115692,150.0,6.969e-05,2]
[344035390,1733237116456,150.0,7.01e-05,2]
[344035391,1733237116795,150.0,7.05e-05,2]
[344035392,1733237117109,150.0,7.091e-05,2]
[344035393,1733237117419,150.0,7.131e-05,2]
[344035394,1733237130581,150.0,6.929e-05,2]
[344035395,1733237130878,150.0,7.014e-05,2]
[344035396,1733237132152,150.0,7.1e-05,2]
[344035400,1733237145123,150.0,6.929e-05,2]
[344035402,1733237163765,150.0,6.929e-05,2]
[344035403,1733237163794,2.44521893,6.929e-05,2]
[344035404,1733237170969,150.0,6.929e-05,2]
[344035405,1733237234120,300.0,7e-05,2]
[344035406,1733237236209,600.0,7.1e-05,2]
[344035615,1733237402387,150.0,7.1e-05,2]
[344035616,1733237402597,150.0,7.1e-05,2]
[344035617,1733237402812,150.0,7.1e-05,2]
[344035618,1733237403114,150.0,7.1e-05,2]
[344035619,1733237403347,150.0,7.1e-05,2]
[344035620,1733237403492,150.0,7.1e-05,2]
[344035621,1733237403691,150.0,7.1e-05,2]
[344035622,1733237404238,150.0,7.1e-05,2]
[344035623,1733237404448,150.0,7.1e-05,2]
[344035624,1733237404472,87.49,7.1e-05,2]
[344035639,1733237432614,-150.0,7.172e-05,2]
[344035640,1733237432623,-150.0,7.185e-05,2]
[344035641,1733237432636,-218.98319987,7.2e-05,2]
[344035642,1733237432662,-681.01680013,7.2e-05,2]
[344035643,1733237432671,-28.96558404,7.212e-05,2]
[344035644,1733237432687,-121.03441596,7.212e-05,2]
[344035645,1733237432696,-150.0,7.253e-05,2]
[344035646,1733237432706,-150.0,7.271e-05,2]
[344035647,1733237432715,-150.0,7.293e-05,2]
[344035648,1733237432725,-1200.0,7.3e-05,2]
[344035649,1733237432735,-150.0,7.314e-05,2]
[344035650,1733237432745,-150.0,7.314e-05,2]
[344035651,1733237432755,-150.0,7.334e-05,2]
[344035652,1733237432766,-150.0,7.356e-05,2]
[344035653,1733237432777,-727.62,7.358e-05,2]
[344035654,1733237432787,-150.0,7.374e-05,2]
[344035655,1733237432796,-1489.23858404,7.4e-05,2]
[344035656,1733237434917,-10.76141596,7.4e-05,2]
[344035657,1733237434927,-150.0,7.415e-05,2]
[344035658,1733237434937,-150.0,7.425e-05,2]
[344035659,1733237434947,-150.0,7.442e-05,2]
[344035660,1733237434957,-150.0,7.448e-05,2]
[344035661,1733237434967,-150.0,7.451e-05,2]
[344035662,1733237434976,-150.0,7.456e-05,2]
[344035663,1733237434986,-150.0,7.459e-05,2]
[344035664,1733237434995,-150.0,7.459e-05,2]
[344035665,1733237435005,-150.0,7.469e-05,2]
[344035666,1733237435024,-150.0,7.49e-05,2]
[344035667,1733237435038,-150.0,7.492e-05,2]
[344035668,1733237435053,-150.0,7.492e-05,2]
[344035669,1733237435063,-150.0,7.493e-05,2]
[344035670,1733237435073,-150.0,7.496e-05,2]
[344035671,1733237435082,-150.0,7.499e-05,2]
[344035672,1733237435092,-201.8,7.5e-05,2]
[344035673,1733237435101,-300.0,7.5e-05,2]
[344035674,1733237435111,-150.0,7.51e-05,2]
[344035675,1733237435121,-150.0,7.515e-05,2]
[344035676,1733237435135,-150.0,7.528e-05,2]
[344035677,1733237435147,-150.0,7.537e-05,2]
[344035678,1733237435157,-150.0,7.539e-05,2]
[344035679,1733237435167,-150.0,7.544e-05,2]
[344035680,1733237435177,-150.0,7.573e-05,2]
[344035682,1733237435187,-150.0,7.574e-05,2]
[344035684,1733237435197,-150.0,7.577e-05,2]
[344035685,1733237435207,-150.0,7.577e-05,2]
[344035686,1733237435217,-15546.93858399,7.599e-05,2]
[344035687,1733237435229,-1595.6263887,7.599e-05,2]
[344035688,1733237435240,-648.2800006,7.599e-05,2]
[344035690,1733237435252,-763.4377096,7.599e-05,2]
[344035692,1733237435262,-466.5622904,7.6e-05,2]
[344035706,1733237435841,-3537.73408198,7.6e-05,2]
[344035707,1733237435851,-160089.13449944,7.6e-05,2]
[344035708,1733237435863,-84910.86550056,7.6e-05,2]
[344035709,1733237435872,-23618.88352409,7.6e-05,2]
[344035710,1733237435887,-32238.5,7.6e-05,2]
[344035719,1733237438407,-24050.0,7.6e-05,2]
[344035720,1733237438419,-3528.70000001,7.6e-05,2]
[344035721,1733237438433,-5168.0960089,7.6e-05,2]
[344035722,1733237438447,-3282.1347124,7.6e-05,2]
[344035723,1733237438460,-15730.28620512,7.6e-05,2]
[344035724,1733237438488,-14129.18561748,7.6e-05,2]
[344035725,1733237438501,-29132.0,7.6e-05,2]
[344035726,1733237438516,-989.74,7.6e-05,2]
[344035727,1733237438654,-378.32167105,7.6e-05,2]
[344035728,1733237438668,-145754.15226095,7.6e-05,2]
[344035729,1733237438679,-2500.0,7.6e-05,2]
[344035730,1733237438689,-300.0,7.6e-05,2]
[344035731,1733237438699,-150.0,7.601e-05,2]
[344035732,1733237438710,-150.0,7.604e-05,2]
[344035733,1733237438720,-150.0,7.613e-05,2]
[344035734,1733237438731,-150.0,7.615e-05,2]
[344035735,1733237438743,-150.0,7.618e-05,2]
[344035736,1733237438754,-150.0,7.62e-05,2]
[344035737,1733237438766,-843.0,7.623e-05,2]
[344035738,1733237438777,-150.0,7.624e-05,2]
[344035739,1733237438788,-150.0,7.64e-05,2]
[344035741,1733237438798,-150.0,7.654e-05,2]
[344035742,1733237438811,-150.0,7.658e-05,2]
[344035743,1733237438820,-150.0,7.667e-05,2]
[344035744,1733237438829,-150.0,7.669e-05,2]
[344035745,1733237438839,-186.64,7.671e-05,2]
[344035746,1733237438849,-2208.0,7.671e-05,2]
[344035747,1733237438858,-500.0,7.673e-05,2]
[344035748,1733237438870,-502.36516474,7.673e-05,2]
[344035749,1733237438881,-500.22181812,7.673e-05,2]
[344035750,1733237438897,-503.54468615,7.673e-05,2]
[344035751,1733237438910,-500.0,7.673e-05,2]
[344035752,1733237438920,-179.14546784,7.673e-05,2]
[344035754,1733237438930,-150.0,7.678e-05,2]
[344035756,1733237438939,-150.0,7.678e-05,2]
[344035757,1733237438948,-200.0,7.679e-05,2]
[344035758,1733237438958,-200.0,7.681e-05,2]
[344035759,1733237438967,-200.0,7.685e-05,2]
[344035761,1733237438977,-200.0,7.686e-05,2]
[344035762,1733237438987,-1100.165275,7.688e-05,2]
[344035763,1733237438998,-555.3883225,7.688e-05,2]
[344035764,1733237439007,-11015.5866881,7.688e-05,2]
[344035765,1733237439018,-3158.8377458,7.688e-05,2]
[344035766,1733237439029,-200.0,7.689e-05,2]
[344035767,1733237439041,-1000.0,7.69e-05,2]
[344035768,1733237439051,-1000.0,7.69e-05,2]
[344035769,1733237439063,-1000.0,7.69e-05,2]
[344035770,1733237439074,-1000.0,7.69e-05,2]
[344035771,1733237439085,-1000.0,7.69e-05,2]
[344035772,1733237439095,-1000.0,7.69e-05,2]
[344035773,1733237439106,-374.0,7.69e-05,2]
[344035774,1733237439116,-1000.0,7.69e-05,3]
[344035775,1733237439126,-1000.0,7.69e-05,3]
[344035776,1733237439139,-1000.0,7.69e-05,3]
[344035777,1733237439150,-1000.0,7.69e-05,2]
[344035778,1733237439160,-1000.0,7.69e-05,2]
[344035779,1733237439170,-1000.0,7.69e-05,2]
[344035780,1733237439181,-546.0,7.69e-05,2]
[344035781,1733237439192,-3195.846,7.693e-05,2]
[344035782,1733237439203,-176.975,7.693e-05,2]
[344035783,1733237439213,-200.0,7.694e-05,2]
[344035784,1733237439223,-968.7875137,7.695e-05,2]
[344035785,1733237439233,-837.4097525,7.695e-05,2]
[344035786,1733237439243,-706.0319912,7.695e-05,2]
[344035787,1733237439252,-489.0658561,7.695e-05,2]
[344035788,1733237439262,-422.7433898,7.695e-05,2]
[344035789,1733237439272,-356.4209234,7.695e-05,2]
[344035790,1733237439282,-10119.7365533,7.695e-05,2]
[344035791,1733237439291,-9223.8864186,7.695e-05,2]
[344035792,1733237439301,-8328.0362838,7.695e-05,2]
[344035793,1733237439311,-2896.836492,7.695e-05,2]
[344035794,1733237439320,-2634.8352383,7.695e-05,2]
[344035795,1733237439330,-2372.8339845,7.695e-05,2]
[344035796,1733237439340,-500.0,7.698e-05,2]
[344035797,1733237439350,-500.0,7.698e-05,2]
[344035798,1733237439360,-500.0,7.698e-05,2]
[344035799,1733237439370,-500.0,7.698e-05,2]
[344035800,1733237439379,-500.0,7.698e-05,2]
[344035801,1733237439392,-500.0,7.698e-05,2]
[344035802,1733237439402,-163.49914847,7.698e-05,2]
[344035803,1733237439411,-500.0,7.698e-05,2]
[344035804,1733237439421,-500.0,7.698e-05,2]
[344035805,1733237439430,-500.0,7.698e-05,2]
[344035806,1733237439440,-500.0,7.698e-05,2]
[344035807,1733237439449,-500.0,7.698e-05,2]
[344035808,1733237439459,-500.0,7.698e-05,2]
[344035809,1733237439468,-500.0,7.698e-05,2]
[344035810,1733237439477,-500.0,7.698e-05,2]
[344035811,1733237439487,-500.0,7.698e-05,2]
[344035812,1733237439496,-500.0,7.698e-05,2]
[344035813,1733237439505,-248.10717397,7.698e-05,2]
[344035814,1733237439515,-500.0,7.698e-05,2]
[344035815,1733237439525,-500.0,7.698e-05,2]
[344035816,1733237439539,-500.0,7.698e-05,2]
[344035817,1733237439549,-469.68323335,7.698e-05,2]
[344035818,1733237439558,-500.0,7.698e-05,2]
[344035819,1733237439568,-500.0,7.698e-05,2]
[344035820,1733237439578,-500.0,7.698e-05,2]
[344035821,1733237439587,-638.67857488,7.698e-05,2]
[344035822,1733237439597,-150.0,7.699e-05,2]
[344035823,1733237439606,-213.31957258,7.699e-05,2]
[344035824,1733237439615,-190.37371311,7.699e-05,2]
[344035825,1733237439625,-150.45989062,7.699e-05,2]
[344035826,1733237439638,-150.4038001,7.699e-05,2]
[344035827,1733237439647,-1063.08168325,7.699e-05,2]
[344035828,1733237439657,-1063.08168325,7.699e-05,2]
[344035829,1733237439666,-1063.08168324,7.699e-05,2]
[344035830,1733237439675,-1063.08168324,7.699e-05,2]
[344035831,1733237439685,-1063.08168324,7.699e-05,2]
[344035832,1733237439695,-1063.08168324,7.699e-05,2]
[344035833,1733237439704,-157.47897566,7.699e-05,2]
[344035834,1733237439714,-7013.197533,7.699e-05,2]
[344035835,1733237439724,-208657.3840112,7.699e-05,2]
[344035836,1733237439734,-29938.12,7.699e-05,2]
[344035837,1733237439743,-1336.6,7.699e-05,2]
[344035838,1733237439753,-200.0,7.699e-05,2]
[344035839,1733237439763,-1094.0,7.7e-05,2]
[344035840,1733237439773,-5209036.69937644,7.7e-05,2]
[344035841,1733237439783,-5605.90070062,7.7e-05,2]
[344035842,1733237439793,-210.0,7.7e-05,2]
[344035843,1733237439802,-202.0,7.7e-05,2]
[344035844,1733237439811,-210.0,7.7e-05,2]
[344035845,1733237439821,-202.0,7.7e-05,2]
[344035846,1733237439831,-210.0,7.7e-05,2]
[344035847,1733237439841,-202.0,7.7e-05,2]
[344035848,1733237439851,-202.0,7.7e-05,2]
[344035849,1733237439861,-202.0,7.7e-05,2]
[344035850,1733237439872,-202.0,7.7e-05,2]
[344035851,1733237439884,-202.0,7.7e-05,2]
[344035852,1733237439898,-216.0,7.7e-05,2]
[344035853,1733237439908,-216.0,7.7e-05,2]
[344035854,1733237439919,-216.0,7.7e-05,2]
[344035855,1733237439930,-216.0,7.7e-05,2]
[344035856,1733237439941,-216.0,7.7e-05,2]
[344035857,1733237439952,-216.0,7.7e-05,2]
[344035858,1733237439962,-216.0,7.7e-05,2]
[344035859,1733237439972,-216.0,7.7e-05,2]
[344035860,1733237439982,-216.0,7.7e-05,2]
[344035861,1733237439992,-2085.0,7.7e-05,2]
[344035862,1733237440002,-250.0,7.7e-05,2]
[344035863,1733237440016,-250.0,7.7e-05,2]
[344035864,1733237440028,-250.0,7.7e-05,2]
[344035865,1733237440038,-250.0,7.7e-05,2]
[344035866,1733237440047,-250.0,7.7e-05,2]
[344035867,1733237440058,-250.0,7.7e-05,2]
[344035868,1733237440068,-250.0,7.7e-05,2]
[344035869,1733237440078,-250.0,7.7e-05,2]
[344035870,1733237440088,-250.0,7.7e-05,2]
[344035871,1733237440098,-250.0,7.7e-05,2]
[344035872,1733237440109,-250.0,7.7e-05,2]
[344035873,1733237440119,-250.0,7.7e-05,2]
[344035874,1733237440131,-201.0,7.7e-05,2]
[344035875,1733237440146,-593.0,7.7e-05,2]
[344035876,1733237440156,-201.0,7.7e-05,2]
[344035877,1733237440167,-593.0,7.7e-05,2]
[344035878,1733237440178,-201.0,7.7e-05,2]
[344035879,1733237440188,-201.0,7.7e-05,2]
[344035880,1733237440199,-593.0,7.7e-05,2]
[344035881,1733237440211,-201.0,7.7e-05,2]
[344035882,1733237440222,-593.0,7.7e-05,2]
[344035883,1733237440232,-593.0,7.7e-05,2]
[344035884,1733237440242,-593.0,7.7e-05,2]
[344035885,1733237440252,-593.0,7.7e-05,2]
[344035886,1733237440264,-593.0,7.7e-05,2]
[344035887,1733237440275,-593.0,7.7e-05,2]
[344035888,1733237440286,-593.0,7.7e-05,2]
[344035890,1733237440298,-593.0,7.7e-05,2]
[344035891,1733237440308,-593.0,7.7e-05,2]
[344035892,1733237440318,-593.0,7.7e-05,2]
[344035893,1733237440328,-593.0,7.7e-05,2]
[344035894,1733237440339,-593.0,7.7e-05,2]
[344035895,1733237440348,-593.0,7.7e-05,2]
[344035897,1733237440359,-593.0,7.7e-05,2]
[344035898,1733237440370,-593.0,7.7e-05,2]
[344035899,1733237440381,-593.0,7.7e-05,2]
[344035900,1733237440395,-593.0,7.7e-05,2]
[344035901,1733237440404,-204.0,7.7e-05,2]
[344035902,1733237440414,-204.0,7.7e-05,2]
[344035904,1733237440424,-204.0,7.7e-05,2]
[344035905,1733237440435,-204.0,7.7e-05,2]
[344035907,1733237440446,-204.0,7.7e-05,2]
[344035908,1733237440455,-204.0,7.7e-05,2]
[344035909,1733237440465,-204.0,7.7e-05,2]
[344035910,1733237440475,-204.0,7.7e-05,2]
[344035911,1733237440485,-204.0,7.7e-05,2]
[344035912,1733237440495,-204.0,7.7e-05,2]
[344035913,1733237440505,-211.0,7.7e-05,2]
[344035914,1733237440515,-211.0,7.7e-05,2]
[344035915,1733237440524,-211.0,7.7e-05,2]
[344035916,1733237440533,-211.0,7.7e-05,2]
[344035917,1733237440543,-211.0,7.7e-05,2]
[344035918,1733237440553,-211.0,7.7e-05,2]
[344035919,1733237440563,-211.0,7.7e-05,2]
[344035920,1733237440573,-211.0,7.7e-05,2]
[344035921,1733237440583,-211.0,7.7e-05,2]
[344035922,1733237440593,-211.0,7.7e-05,2]
[344035923,1733237440603,-211.0,7.7e-05,2]
[344035924,1733237440613,-211.0,7.7e-05,2]
[344035925,1733237440623,-14656599.73282094,7.7e-05,2]
[344035926,1733237440640,-567.78710183,7.7e-05,2]
[344035927,1733237440746,-1172.97865679,7.7e-05,2]
[344035928,1733237440758,-670.66821035,7.7e-05,2]
[344035929,1733237440770,-250382.5982103,7.7e-05,2]
[344035930,1733237440781,-194928.73588723,7.7e-05,2]
[344035931,1733237440793,-188676.44809552,7.7e-05,2]
[344035932,1733237440805,-1205.01955174,7.7e-05,2]
[344035933,1733237440816,-537.98613342,7.7e-05,2]
[344035935,1733237441334,-352.0,7.7e-05,2]
[344035936,1733237441346,-21742.26562118,7.7e-05,2]
[344035937,1733237441460,-338.17878016,7.7e-05,2]
[344035947,1733237441844,150.0,6.688e-05,2]
[344035948,1733237441865,52.06,6.688e-05,2]
[344035979,1733237444122,-754.154112,7.7e-05,2]
[344035980,1733237444135,-1305.8219797,7.7e-05,2]
[344035981,1733237444166,-323.3070744,7.7e-05,2]
[344035982,1733237444178,-426.07412238,7.7e-05,2]
[344035983,1733237444191,-2297.99999935,7.7e-05,2]
[344035984,1733237444202,-15212.87344229,7.7e-05,2]
[344035985,1733237444214,-17731.9824496,7.7e-05,2]
[344035986,1733237444226,-14283.02405952,7.7e-05,2]
[344035988,1733237444237,-823.431,7.7e-05,2]
[344035990,1733237444249,-490.65000002,7.7e-05,2]
[344035993,1733237444260,-355.35160355,7.7e-05,2]
[344035995,1733237444271,-1193.49997,7.7e-05,2]
[344035997,1733237444283,-537.45,7.7e-05,2]
[344035999,1733237444296,-4020.90535713,7.7e-05,2]
[344036001,1733237444309,-99146.00251374,7.7e-05,2]
[344036011,1733237444401,-11990.02593763,7.7e-05,2]
[344036014,1733237444413,-22997.54636039,7.7e-05,2]
[344036016,1733237444610,-316.9401166,7.7e-05,2]
[344036017,1733237444621,-705.33994328,7.7e-05,2]
[344036028,1733237446226,-642.0,7.7e-05,2]
[344036029,1733237446236,-1214.04999999,7.7e-05,2]
[344036031,1733237446248,-592.2250025,7.7e-05,2]
[344036034,1733237446259,-622.6,7.7e-05,2]
[344036036,1733237446282,-6656.11359257,7.7e-05,2]
[344036038,1733237446294,-6944.99999947,7.7e-05,2]
[344036039,1733237446305,-5521.16939284,7.7e-05,2]
[344036040,1733237446326,-3576.9,7.7e-05,2]